bitfinex-derivatives/quotes_BTCF0:USTF0_20250930
["timestamp","ask_amount","ask_price","bid_price","bid_amount"]
[1759259288005,0.8924701,113790.0,113780.0,1.37763755]
[1759259288308,0.8924701,113790.0,113780.0,1.40947551]
[1759259288501,0.8920701,113790.0,113780.0,1.40947551]
[1759259288704,0.0882701,113790.0,113780.0,1.40947551]
[1759259288903,0.8934301,113790.0,113780.0,1.40947551]
[1759259289302,0.8934301,113790.0,113780.0,0.98553595]
[1759259289505,0.8934301,113790.0,113780.0,0.88980946]
[1759259292312,0.8934301,113790.0,113780.0,0.47532885]
[1759259292609,0.8934301,113790.0,113780.0,0.88980946]
[1759259293410,0.0882701,113790.0,113780.0,0.97768626]
[1759259293610,0.8929901,113790.0,113780.0,0.97768626]
[1759259294013,0.8933901,113790.0,113780.0,0.97768626]
[1759259294311,0.8933901,113790.0,113780.0,1.39140191]
[1759259297011,0.8933901,113790.0,113780.0,1.79140191]
[1759259297211,0.0882701,113790.0,113780.0,1.79140191]
[1759259297410,0.8930301,113790.0,113780.0,1.79140191]
[1759259297813,0.87874513,113790.0,113780.0,1.79140191]
[1759259298009,0.87834513,113790.0,113780.0,1.79140191]
[1759259298210,0.87874513,113790.0,113780.0,1.79140191]
[1759259299111,0.07398513,113790.0,113780.0,1.79140191]
[1759259299413,0.07398513,113790.0,113780.0,1.71298306]
[1759259299414,0.87934513,113790.0,113780.0,1.71298306]
[1759259300213,0.87934513,113790.0,113780.0,2.23728829]
[1759259300613,0.87894513,113790.0,113780.0,2.23728829]
[1759259300915,0.87934513,113790.0,113780.0,2.23728829]
[1759259301113,0.87934513,113790.0,113780.0,1.82319016]
[1759259301514,0.87934513,113790.0,113780.0,2.23728829]
[1759259302414,0.80576,113790.0,113780.0,2.23728829]
[1759259302610,0.80536,113790.0,113780.0,2.23728829]
[1759259302809,0.0878677,113800.0,113790.0,0.1231192]
[1759259303010,0.8927877,113800.0,113790.0,1.31211546]
[1759259303209,0.8931877,113800.0,113790.0,1.31211546]
[1759259303408,0.80492,113800.0,113790.0,1.31211546]
[1759259303612,0.80532,113800.0,113790.0,1.42232256]
[1759259304614,0.8931814,113800.0,113790.0,1.42232256]
[1759259304910,0.0882614,113800.0,113790.0,0.5941263]
[1759259305116,0.8930614,113800.0,113790.0,1.42232256]
[1759259307420,0.8930614,113800.0,113790.0,1.31211546]
[1759259307820,0.8787786,113800.0,113790.0,1.31211546]
[1759259308519,0.0878592,113810.0,113800.0,0.01338]
[1759259308724,0.8922592,113810.0,113800.0,1.30261258]
[1759259309122,0.8922592,113810.0,113800.0,1.39046658]
[1759259309322,0.8922592,113810.0,113800.0,1.31210026]
[1759259309522,0.8919792,113810.0,113800.0,1.31210026]
[1759259310424,0.8918992,113810.0,113800.0,1.31210026]
[1759259310619,0.3386498,113820.0,113810.0,0.0878537]
[1759259310820,0.0886498,113820.0,113810.0,1.37567441]
[1759259311027,0.8920098,113820.0,113810.0,1.37567441]
[1759259311321,0.8924098,113820.0,113810.0,0.96157628]
[1759259311818,1.72060606,113820.0,113810.0,0.45962445]
[1759259312018,1.72060606,113820.0,113810.0,0.96157628]
[1759259312219,1.72060606,113820.0,113810.0,0.87372258]
[1759259312420,1.30650793,113820.0,113810.0,0.87372258]
[1759259312723,1.30650793,113820.0,113810.0,0.9447459]
[1759259312924,1.30650793,113820.0,113810.0,1.0325998]
[1759259313321,1.30650793,113820.0,113810.0,0.9447459]
[1759259314420,1.30650793,113820.0,113810.0,1.0325998]
[1759259314922,0.0882498,113820.0,113810.0,1.4648148]
[1759259315120,0.0878498,113820.0,113810.0,1.4648148]
[1759259315320,0.8921298,113820.0,113810.0,1.4648148]
[1759259315520,0.8917298,113820.0,113810.0,1.4648148]
[1759259315716,0.8921298,113820.0,113810.0,1.4648148]
[1759259317328,0.8921298,113820.0,113810.0,1.05071667]
[1759259318021,0.8921298,113820.0,113810.0,1.4648148]
[1759259319421,0.8921298,113820.0,113810.0,1.05071667]
[1759259319623,0.8921298,113820.0,113810.0,1.4648148]
[1759259320429,0.8921298,113820.0,113810.0,1.05071667]
[1759259321825,0.8919298,113820.0,113810.0,1.05071667]
[1759259322928,0.8919298,113820.0,113810.0,1.4648148]
[1759259322929,0.0882498,113820.0,113810.0,1.4648148]
[1759259323130,0.8918898,113820.0,113810.0,1.4648148]
[1759259323333,0.0882498,113820.0,113810.0,1.4648148]
[1759259323531,0.87760802,113820.0,113810.0,1.48048667]
[1759259324836,0.87760802,113820.0,113810.0,1.06638854]
[1759259325730,0.87760802,113820.0,113810.0,1.48048667]
[1759259326142,0.87720802,113820.0,113810.0,1.48048667]
[1759259326329,0.87760802,113820.0,113810.0,1.48048667]
[1759259328636,0.87760802,113820.0,113810.0,1.06638854]
[1759259332441,0.87760802,113820.0,113810.0,1.12919458]
[1759259332639,0.87760802,113820.0,113810.0,1.05082826]
[1759259334844,0.87760802,113820.0,113810.0,1.46492639]
[1759259335041,0.87760802,113820.0,113810.0,0.63673013]
[1759259335347,0.87760802,113820.0,113810.0,1.05082826]
[1759259340844,0.07396802,113820.0,113810.0,1.46492639]
[1759259341138,0.87752802,113820.0,113810.0,1.46492639]
[1759259341646,0.87752802,113820.0,113810.0,1.40212035]
[1759259341842,0.0878442,113830.0,113810.0,1.80212035]
[1759259342045,1.8697034,113850.0,113820.0,1.42281946]
[1759259342249,0.8933559,113840.0,113830.0,0.20214919]
[1759259342442,0.8933559,113840.0,113830.0,0.56294919]
[1759259342642,0.0878359,113840.0,113830.0,0.56294919]
[1759259342951,0.8932759,113840.0,113830.0,0.61267993]
[1759259343345,0.8936759,113840.0,113830.0,1.44087619]
[1759259343950,0.80584,113840.0,113830.0,1.44087619]
[1759259344444,0.80584,113840.0,113830.0,1.33066909]
[1759259344843,0.0004,113840.0,113830.0,1.33066909]
[1759259345049,0.8056,113840.0,113830.0,1.33066909]
[1759259345844,0.0004,113840.0,113830.0,1.33066909]
[1759259346052,0.80544,113840.0,113830.0,1.91925133]
[1759259346242,0.80544,113840.0,113830.0,1.91922342]
[1759259346546,0.80544,113840.0,113830.0,1.80901632]
[1759259348252,0.8932705,113840.0,113830.0,1.84984917]
[1759259348450,0.80544,113840.0,113830.0,1.84984917]
[1759259348749,0.8932707,113840.0,113830.0,1.73964207]
[1759259349349,0.8932707,113840.0,113830.0,1.81793841]
[1759259349848,0.80544,113840.0,113830.0,1.81793841]
[1759259350048,0.80544,113840.0,113830.0,1.73964207]
[1759259350349,0.80544,113840.0,113830.0,1.81794032]
[1759259351545,0.80504,113840.0,113830.0,1.81794032]
[1759259351746,0.80544,113840.0,113830.0,1.81794032]
[1759259351946,0.79116194,113840.0,113830.0,1.81794032]
[1759259352844,0.0004,113840.0,113830.0,1.81794032]
[1759259353049,0.805,113840.0,113830.0,1.81794032]
[1759259354249,2.12102706,113840.0,113830.0,0.40554298]
[1759259354452,2.12102706,113840.0,113830.0,0.44587409]
[1759259354651,2.12102706,113840.0,113830.0,0.85997222]
[1759259354850,2.12102706,113840.0,113830.0,0.43690111]
[1759259355049,1.70692893,113840.0,113830.0,0.87332924]
[1759259355552,0.90192893,113840.0,113830.0,0.87332924]
[1759259355755,1.2929108,113840.0,113830.0,0.96116774]
[1759259356044,0.0878308,113840.0,113830.0,0.89850663]
[1759259356249,0.8930708,113840.0,113830.0,0.96082401]
[1759259356655,0.8926708,113840.0,113830.0,0.96082401]
[1759259356853,0.8930708,113840.0,113830.0,0.96082401]
[1759259358851,0.8930708,113840.0,113830.0,0.96970001]
[1759259362148,0.8930708,113840.0,113830.0,0.9070389]
[1759259363247,0.8930708,113840.0,113830.0,0.4932845]
[1759259363454,0.8930708,113840.0,113830.0,0.9070389]
[1759259367160,0.8930708,113840.0,113830.0,0.9250042]
[1759259368059,0.8787915,113840.0,113830.0,0.9250042]
[1759259368261,0.8787915,113840.0,113830.0,1.00330245]
[1759259368959,0.8787915,113840.0,113830.0,0.58954805]
[1759259369161,0.8787915,113840.0,113830.0,1.00330245]
[1759259369458,0.8920305,113840.0,113830.0,1.40330245]
[1759259369662,0.8916305,113840.0,113830.0,1.40330245]
[1759259369865,0.8920305,113840.0,113830.0,1.40330245]
[1759259370270,0.0004,113840.0,113830.0,1.3250042]
[1759259370465,0.60408,113840.0,113830.0,1.3250042]
[1759259370672,0.60408,113840.0,113830.0,1.4352113]
[1759259370867,0.6919105,113840.0,113830.0,1.4352113]
[1759259371064,0.6919105,113840.0,113830.0,1.3250042]
[1759259371464,0.6919105,113840.0,113830.0,1.4352113]
[1759259373173,0.6919105,113840.0,113830.0,0.5156531]
[1759259373368,0.6919105,113840.0,113830.0,0.6034914]
[1759259373570,0.6919105,113840.0,113830.0,1.0172458]
[1759259377076,1.5056649,113840.0,113830.0,0.4682451]
[1759259377375,0.8917105,113840.0,113830.0,0.9070389]
[1759259377577,0.0878305,113840.0,113830.0,0.9070389]
[1759259377877,0.8917105,113840.0,113830.0,0.9070389]
[1759259378177,0.8917105,113840.0,113830.0,0.92511636]
[1759259379176,0.87743169,113840.0,113830.0,0.92511636]
[1759259379878,0.87743169,113840.0,113830.0,1.00361872]
[1759259380183,0.87743169,113840.0,113830.0,0.58986432]
[1759259380374,0.87743169,113840.0,113830.0,1.00361872]
[1759259380679,0.87743169,113840.0,113830.0,0.58986432]
[1759259382677,0.87743169,113840.0,113830.0,1.00361872]
[1759259383980,0.87743169,113840.0,113830.0,0.91578022]
[1759259385179,0.87743169,113840.0,113830.0,1.00361862]
[1759259389276,0.86315277,113840.0,113830.0,1.00361862]
[1759259389475,0.05967277,113840.0,113830.0,1.00361862]
[1759259389776,0.80388,113840.0,113830.0,1.00361862]
[1759259389983,0.8917107,113840.0,113830.0,0.92511626]
[1759259390374,0.80388,113840.0,113830.0,1.03532336]
[1759259390574,0.8913105,113840.0,113830.0,1.03532336]
[1759259390779,0.8917105,113840.0,113830.0,1.03532336]
[1759259391980,0.0882305,113840.0,113830.0,1.03532336]
[1759259392181,0.8917105,113840.0,113830.0,0.92511626]
[1759259395382,0.0882305,113840.0,113830.0,0.92511626]
[1759259395578,0.8916705,113840.0,113830.0,0.92511626]
[1759259396086,0.0004,113840.0,113830.0,0.92511626]
[1759259396283,0.80384,113840.0,113830.0,1.43532336]
[1759259396577,0.80344,113840.0,113830.0,1.43532336]
[1759259396784,0.8912705,113840.0,113830.0,1.32511626]
[1759259397082,0.8916705,113840.0,113830.0,1.32511626]
[1759259397286,0.0882305,113840.0,113830.0,1.32511626]
[1759259397479,0.8916705,113840.0,113830.0,1.32511626]
[1759259398579,0.80384,113840.0,113830.0,1.32511626]
[1759259399382,0.78956216,113840.0,113830.0,1.32511626]
[1759259399780,0.3378286,113850.0,113840.0,0.1222505]
[1759259399981,1.1412686,113850.0,113840.0,0.97534311]
[1759259400583,0.3378286,113850.0,113840.0,0.97534311]
[1759259400784,1.1412686,113850.0,113840.0,0.97534311]
[1759259404180,1.1412286,113850.0,113840.0,0.97534311]
[1759259404985,1.05404,113850.0,113840.0,1.3105593]
[1759259405286,0.0004,113850.0,113840.0,1.7105593]
[1759259405485,0.0886126,113870.0,113860.0,0.1222353]
[1759259405686,0.3116126,113870.0,113860.0,0.97525919]
[1759259405885,0.3120126,113870.0,113860.0,0.97525919]
[1759259407191,0.3120126,113870.0,113860.0,1.04450251]
[1759259407385,0.3120126,113870.0,113860.0,0.95668721]
[1759259409295,0.29773695,113870.0,113860.0,0.95668721]
[1759259409592,0.29773695,113870.0,113860.0,0.54293281]
[1759259409792,0.29773695,113870.0,113860.0,0.95668721]
[1759259410190,1.11149135,113870.0,113860.0,0.54293281]
[1759259410389,1.11149135,113870.0,113860.0,0.22352874]
[1759259410592,1.11149135,113870.0,113860.0,0.14505925]
[1759259411389,1.11149135,113870.0,113860.0,0.07581593]
[1759259411590,1.11149135,113870.0,113860.0,0.09712593]
[1759259412192,1.47229135,113870.0,113860.0,0.07581593]
[1759259414395,1.47229135,113870.0,113860.0,0.09712593]
[1759259418299,1.47216996,113870.0,113860.0,0.09712593]
[1759259418596,1.47216996,113870.0,113860.0,0.51075894]
[1759259422098,1.24836996,113870.0,113860.0,0.51075894]
[1759259422298,3.83304996,113870.0,113860.0,0.51075894]
[1759259422693,3.47224996,113870.0,113860.0,0.51075894]
[1759259422995,2.65461361,113870.0,113860.0,0.89666831]
[1759259423190,3.45805361,113870.0,113860.0,1.31030132]
[1759259423399,3.05805361,113870.0,113860.0,0.89666831]
[1759259423994,2.6444206,113870.0,113860.0,0.89666831]
[1759259424199,0.8625806,113870.0,113860.0,1.37304844]
[1759259424394,0.0596606,113870.0,113860.0,1.37304844]
[1759259424595,0.8648606,113870.0,113860.0,1.37304844]
[1759259424796,0.8652606,113870.0,113860.0,1.37304844]
[1759259425190,0.8648606,113870.0,113860.0,1.37304844]
[1759259425494,0.8652606,113870.0,113860.0,1.37304844]
[1759259426096,0.0004,113870.0,113860.0,1.37304844]
[1759259426301,0.80596,113870.0,113860.0,1.38877081]
[1759259427001,0.80596,113870.0,113860.0,1.78877081]
[1759259427002,0.0004,113870.0,113860.0,1.78877081]
[1759259427199,0.8931676,113870.0,113860.0,1.78877081]
[1759259427405,0.8935676,113870.0,113860.0,1.78877081]
[1759259428407,0.0882076,113870.0,113860.0,1.78877081]
[1759259428606,0.8934876,113870.0,113860.0,1.80676551]
[1759259430205,1.1434876,113870.0,113860.0,1.80676551]
[1759259430401,0.8934876,113870.0,113860.0,1.80676551]
[1759259430911,1.1434876,113870.0,113860.0,1.80676551]
[1759259431311,1.05568,113870.0,113860.0,1.80676551]
[1759259431512,0.2504,113870.0,113860.0,2.22039852]
[1759259431713,0.2504,113870.0,113860.0,2.25178632]
[1759259431907,1.05552,113870.0,113860.0,1.83815331]
[1759259433005,0.80512,113870.0,113860.0,1.83815331]
[1759259433411,0.80552,113870.0,113860.0,1.83815331]
[1759259434012,1.04552,113870.0,113860.0,1.83815331]
[1759259434813,1.1335276,113870.0,113860.0,1.83815331]
[1759259435406,1.04572,113870.0,113860.0,1.83815331]
[1759259437711,1.04528,113870.0,113860.0,1.83815331]
[1759259439415,1.04528,113870.0,113860.0,1.43815331]
[1759259439710,1.04528,113870.0,113860.0,1.32829602]
[1759259443020,0.80488,113870.0,113860.0,1.32829602]
[1759259444022,1.03488,113870.0,113860.0,1.32829602]
[1759259449322,1.03488,113870.0,113860.0,1.43815331]
[1759259450118,1.03368,113870.0,113860.0,1.43815331]
[1759259450622,0.23,113870.0,113860.0,1.43815331]
[1759259450815,1.03344,113870.0,113860.0,1.43815331]
[1759259451421,1.03336,113870.0,113860.0,1.32829602]
[1759259451620,0.23,113870.0,113860.0,1.32829602]
[1759259451821,1.03332,113870.0,113860.0,1.32829602]
[1759259452625,1.03332,113870.0,113860.0,1.43815331]
[1759259453119,0.80332,113870.0,113860.0,1.43815331]
[1759259453324,0.1011055,113880.0,113870.0,0.1234376]
[1759259453524,0.9044255,113880.0,113870.0,0.97630366]
[1759259454224,0.9044255,113880.0,113870.0,1.38993667]
[1759259455124,0.9044255,113880.0,113870.0,0.97630366]
[1759259455326,0.9043855,113880.0,113870.0,0.97630366]
[1759259457521,0.1011055,113880.0,113870.0,0.97630366]
[1759259457725,0.9061455,113880.0,113870.0,0.97630366]
[1759259457926,0.1011055,113880.0,113870.0,0.97630366]
[1759259458125,0.9061055,113880.0,113870.0,0.97630366]
[1759259458333,0.9060255,113880.0,113870.0,0.97630366]
[1759259459233,0.1011055,113880.0,113870.0,0.97630366]
[1759259459433,0.9059855,113880.0,113870.0,0.97630366]
[1759259460326,0.9059855,113880.0,113870.0,0.4842376]
[1759259460527,0.9059855,113880.0,113870.0,0.89787061]
[1759259461736,0.9058655,113880.0,113870.0,0.89787061]
[1759259462338,1.31949851,113880.0,113870.0,0.89787061]
[1759259462534,0.9058655,113880.0,113870.0,0.39643]
[1759259462736,1.31949851,113880.0,113870.0,0.81006301]
[1759259463041,2.13313152,113880.0,113870.0,0.43642891]
[1759259463246,2.11885704,113880.0,113870.0,0.45203305]
[1759259464451,2.11885704,113880.0,113870.0,0.47486305]
[1759259465143,1.70522403,113880.0,113870.0,0.88849606]
[1759259466046,1.29159102,113880.0,113870.0,0.88849606]
[1759259466245,1.70522403,113880.0,113870.0,0.97630356]
[1759259467846,1.29159102,113880.0,113870.0,0.52769606]
[1759259468045,1.70522403,113880.0,113870.0,0.11406305]
[1759259468345,1.70522403,113880.0,113870.0,0.97630366]
[1759259468847,1.70522403,113880.0,113870.0,0.61550366]
[1759259469045,1.70522403,113880.0,113870.0,0.44926301]
[1759259471951,1.70522403,113880.0,113870.0,0.53707061]
[1759259475154,1.29159102,113880.0,113870.0,0.59984965]
[1759259475346,2.67383102,113880.0,113870.0,1.31150362]
[1759259475650,2.67423102,113880.0,113870.0,1.31150362]
[1759259475954,2.67799102,113880.0,113870.0,1.31150362]
[1759259476156,2.67759102,113880.0,113870.0,1.31150362]
[1759259476453,2.67799102,113880.0,113870.0,0.89787061]
[1759259476649,2.67799102,113880.0,113870.0,0.4842376]
[1759259477149,2.67799102,113880.0,113870.0,0.89787061]
[1759259478256,2.67799102,113880.0,113870.0,0.89771751]
[1759259480156,2.67799102,113880.0,113870.0,0.97615056]
[1759259480456,2.67799102,113880.0,113870.0,0.56267065]
[1759259480651,2.67799102,113880.0,113870.0,0.4842376]
[1759259481453,2.67735102,113880.0,113870.0,0.4842376]
[1759259481653,3.09083093,113880.0,113870.0,0.4842376]
[1759259483455,0.50071093,113880.0,113870.0,0.56267065]
[1759259483652,3.09099093,113880.0,113870.0,0.4842376]
[1759259483853,3.09099093,113880.0,113870.0,0.56267065]
[1759259485058,3.07671637,113880.0,113870.0,0.56267065]
[1759259485757,2.66323646,113880.0,113870.0,0.56267065]
[1759259485956,3.07671637,113880.0,113870.0,0.56267065]
[1759259487060,3.07671637,113880.0,113870.0,0.20187065]
[1759259487261,3.07671637,113880.0,113870.0,0.11406305]
[1759259487562,3.07671637,113880.0,113870.0,0.20187055]
[1759259488468,0.48643637,113880.0,113870.0,0.20187055]
[1759259488659,3.07631637,113880.0,113870.0,0.20187055]
[1759259489468,2.6780798,113880.0,113870.0,0.61535046]
[1759259489666,2.6780798,113880.0,113870.0,0.20187055]
[1759259489964,2.6780798,113880.0,113870.0,0.61535046]
[1759259490764,3.09155971,113880.0,113870.0,0.61535046]
[1759259490971,3.09155971,113880.0,113870.0,0.20187055]
[1759259494768,0.50167971,113880.0,113870.0,0.20187055]
[1759259494970,3.09547971,113880.0,113870.0,0.20187055]
[1759259495163,3.08120467,113880.0,113870.0,0.20187055]
[1759259495664,3.08120467,113880.0,113870.0,0.11406305]
[1759259496768,2.66772476,113880.0,113870.0,0.11406305]
[1759259496972,3.08120467,113880.0,113870.0,0.11406305]
[1759259497467,3.08120467,113880.0,113870.0,0.03563]
[1759259497771,3.08120467,113880.0,113870.0,0.1234374]
[1759259509077,3.08120467,113880.0,113870.0,0.20187045]
[1759259511182,3.06692962,113880.0,113870.0,0.20187045]
[1759259513580,2.65344971,113880.0,113870.0,0.20187045]
[1759259513882,3.06692962,113880.0,113870.0,0.20187045]
[1759259520587,0.47312962,113880.0,113870.0,0.20187045]
[1759259520782,3.06340962,113880.0,113870.0,0.20187045]
[1759259521085,3.04913457,113880.0,113870.0,0.20187045]
[1759259521288,0.45885457,113880.0,113870.0,0.20187045]
[1759259521586,3.04877457,113880.0,113870.0,0.20187045]
[1759259521787,0.45885457,113880.0,113870.0,0.20187045]
[1759259522087,3.04877457,113880.0,113870.0,0.20187045]
[1759259522286,0.45885457,113880.0,113870.0,0.11406305]
[1759259522487,3.04857457,113880.0,113870.0,0.20187045]
[1759259525986,3.04857457,113880.0,113870.0,0.11406305]
[1759259526183,4.22285448,113880.0,113870.0,0.07843305]
[1759259526384,0.0878054,113870.0,113860.0,0.17935615]
[1759259526590,0.50128531,113870.0,113860.0,0.09154305]
[1759259526790,0.50128531,113870.0,113860.0,0.17935615]
[1759259526990,0.86208531,113870.0,113860.0,0.09154305]
[1759259527491,0.86208531,113870.0,113860.0,0.17935615]
[1759259527997,0.86208531,113870.0,113860.0,0.09154305]
[1759259528787,0.4486054,113870.0,113860.0,0.11446305]
[1759259528992,0.86208531,113870.0,113860.0,0.11446305]
[1759259529193,0.86208531,113870.0,113860.0,0.03603]
[1759259529995,0.86208531,113870.0,113860.0,0.01311]
[1759259531394,0.0878133,113860.0,113850.0,0.16220426]
[1759259531596,1.29513585,113860.0,113850.0,0.16220426]
[1759259532397,1.29513585,113860.0,113850.0,0.18512426]
[1759259533597,0.88165594,113860.0,113850.0,0.10669121]
[1759259533799,1.29513585,113860.0,113850.0,0.53024811]
[1759259534600,1.29513585,113860.0,113850.0,0.46749121]
[1759259535100,1.29513585,113860.0,113850.0,0.10669121]
[1759259535395,1.29513585,113860.0,113850.0,0.14651284]
[1759259536905,1.65593585,113860.0,113850.0,0.14651284]
[1759259537095,1.65593585,113860.0,113850.0,0.13340284]
[1759259537602,1.65593585,113860.0,113850.0,0.14647284]
[1759259538305,2.0699495,113860.0,113850.0,0.14647284]
[1759259542722,2.0699495,113860.0,113850.0,0.16975284]
[1759259543226,1.24245594,113860.0,113850.0,0.16975284]
[1759259543523,2.0699495,113860.0,113850.0,0.16975284]
[1759259545024,1.7091495,113860.0,113850.0,0.53055284]
[1759259545325,3.4894695,113860.0,113850.0,0.94429962]
[1759259545918,3.4894695,113860.0,113850.0,1.03212192]
[1759259546125,3.4894695,113860.0,113850.0,0.94429962]
[1759259546918,3.4894695,113860.0,113850.0,1.03212192]
[1759259547127,3.4894695,113860.0,113850.0,0.58349962]
[1759259548324,3.4894695,113860.0,113850.0,0.52075799]
[1759259549529,3.47519189,113860.0,113850.0,0.52075799]
[1759259549732,3.47519189,113860.0,113850.0,0.59919104]
[1759259549930,3.47519189,113860.0,113850.0,0.68701334]
[1759259550232,3.47519189,113860.0,113850.0,0.59919104]
[1759259550630,3.47519189,113860.0,113850.0,0.68701334]
[1759259551533,2.64769833,113860.0,113850.0,0.68701334]
[1759259551735,3.47519189,113860.0,113850.0,0.59919104]
[1759259553532,3.47519189,113860.0,113850.0,0.68701334]
[1759259554336,3.47519189,113860.0,113850.0,0.27326656]
[1759259554734,3.47519189,113860.0,113850.0,0.68701334]
[1759259554938,3.47519189,113860.0,113850.0,0.18544426]
[1759259555231,3.83599189,113860.0,113850.0,0.14909426]
[1759259555537,3.83599189,113860.0,113850.0,0.07066121]
[1759259555730,0.0878223,113850.0,113840.0,0.95391913]
[1759259555936,0.50156908,113850.0,113840.0,0.95391913]
[1759259556234,0.50156908,113850.0,113840.0,0.97719913]
[1759259558239,0.50156908,113850.0,113840.0,0.89876608]
[1759259558836,0.50156908,113850.0,113840.0,0.97726442]
[1759259559429,0.50156908,113850.0,113840.0,1.0477422]
[1759259560930,3.08856908,113850.0,113840.0,1.0477422]
[1759259565343,3.08856908,113850.0,113840.0,0.63399542]
[1759259565735,3.08856908,113850.0,113840.0,1.0477422]
[1759259566240,3.08856908,113850.0,113840.0,0.63399542]
[1759259566538,3.08856908,113850.0,113840.0,1.0477422]
[1759259568230,3.08856908,113850.0,113840.0,1.0244622]
[1759259568443,3.08856908,113850.0,113840.0,0.61071542]
[1759259568645,3.08856908,113850.0,113840.0,1.0244622]
[1759259569146,3.08856908,113850.0,113840.0,0.63185542]
[1759259569346,3.08856908,113850.0,113840.0,1.0456022]
[1759259570242,3.08856908,113850.0,113840.0,0.61071542]
[1759259570743,3.08856908,113850.0,113840.0,0.63185542]
[1759259571546,3.50231586,113850.0,113840.0,0.52288612]
[1759259571749,3.50231586,113850.0,113840.0,0.06286396]
[1759259571750,4.24883785,113850.0,113840.0,0.06286396]
[1759259573248,0.08783,113840.0,113830.0,0.07660396]
[1759259573444,0.91532356,113840.0,113830.0,0.07660396]
[1759259573644,1.27612356,113840.0,113830.0,0.07660396]
[1759259573845,1.27612356,113840.0,113830.0,0.01374]
[1759259577546,0.0878377,113830.0,113820.0,0.51720442]
[1759259577746,1.30658448,113830.0,113820.0,0.51720442]
[1759259577948,1.30658448,113830.0,113820.0,0.60504992]
[1759259578249,1.30658448,113830.0,113820.0,0.62618992]
[1759259579744,1.30658448,113830.0,113820.0,0.47548046]
[1759259580550,1.30658448,113830.0,113820.0,0.53820575]
[1759259580753,3.08818448,113830.0,113820.0,0.53820575]
[1759259583961,0.50158448,113830.0,113820.0,0.95195253]
[1759259584162,3.08822448,113830.0,113820.0,0.95195253]
[1759259584759,3.08822448,113830.0,113820.0,0.88922724]
[1759259585159,3.08822448,113830.0,113820.0,0.47548046]
[1759259585364,3.08822448,113830.0,113820.0,0.96772558]
[1759259586162,3.08822448,113830.0,113820.0,0.5539788]
[1759259586362,3.08822448,113830.0,113820.0,0.96772558]
[1759259587764,3.08822448,113830.0,113820.0,1.05557108]
[1759259588661,3.08822448,113830.0,113820.0,0.6418243]
[1759259588862,3.08822448,113830.0,113820.0,1.05557108]
[1759259589363,0.07355698,113830.0,113820.0,1.46931786]
[1759259589558,1.87031,113840.0,113830.0,0.1223877]
[1759259589762,0.0008,113840.0,113830.0,1.71068126]
[1759259589964,0.8058,113840.0,113830.0,1.71068126]
[1759259590264,0.8054,113840.0,113830.0,1.71068126]
[1759259590465,0.8932301,113840.0,113830.0,1.71068126]
[1759259592065,0.8932301,113840.0,113830.0,1.7891796]
[1759259593968,0.8054,113840.0,113830.0,1.7891796]
[1759259595064,0.89323,113840.0,113830.0,1.7891796]
[1759259597063,0.08823,113840.0,113830.0,1.7891796]
[1759259597261,0.89315,113840.0,113830.0,1.37543282]
[1759259597664,0.89311,113840.0,113830.0,1.37543282]
[1759259600274,0.89311,113840.0,113830.0,1.37539939]
[1759259602775,0.87883215,113840.0,113830.0,1.37539939]
[1759259607682,0.89271,113840.0,113830.0,1.37539939]
[1759259608783,0.08783,113840.0,113830.0,1.37539939]
[1759259609077,0.89255,113840.0,113830.0,1.29690105]
[1759259609684,0.89255,113840.0,113830.0,1.40675834]
[1759259612292,0.89255,113840.0,113830.0,1.29690105]
[1759259612787,0.87827215,113840.0,113830.0,1.29690105]
[1759259613489,0.87827215,113840.0,113830.0,1.40675834]
[1759259614989,0.80472,113840.0,113830.0,1.40675834]
[1759259619385,0.89255,113840.0,113830.0,1.00675834]
[1759259619890,0.89255,113840.0,113830.0,0.89690105]
[1759259620390,0.80472,113840.0,113830.0,0.89690105]
[1759259620990,0.2986277,113850.0,113840.0,0.08783]
[1759259621192,1.51690105,113850.0,113840.0,1.00722052]
[1759259621688,0.71234105,113850.0,113840.0,1.00722052]
[1759259621897,1.51690105,113850.0,113840.0,1.00722052]
[1759259622395,1.51690105,113850.0,113840.0,0.89716335]
[1759259622886,1.30690105,113850.0,113840.0,0.89716335]
[1759259624498,1.30690105,113850.0,113840.0,1.00722052]
[1759259625701,1.30690105,113850.0,113840.0,0.89716335]
[1759259626000,1.30690105,113850.0,113840.0,0.48345]
[1759259626302,1.30690105,113850.0,113840.0,0.59350717]
[1759259628003,1.30690105,113850.0,113840.0,0.48345]
[1759259631009,0.8931877,113850.0,113840.0,0.48345]
[1759259631203,1.30690105,113850.0,113840.0,0.48345]
[1759259632812,0.8931877,113850.0,113840.0,0.48345]
[1759259633012,1.30690105,113850.0,113840.0,0.48345]
[1759259633415,0.8931877,113850.0,113840.0,0.89716335]
[1759259633710,0.8930677,113850.0,113840.0,0.89716335]
[1759259633901,0.8930677,113850.0,113840.0,0.48345]
[1759259634912,0.8930677,113850.0,113840.0,0.4834468]
[1759259635815,1.30678105,113850.0,113840.0,0.4834468]
[1759259639519,1.30678105,113850.0,113840.0,0.89716015]
[1759259639720,1.29250315,113850.0,113840.0,0.89716015]
[1759259641930,1.29250315,113850.0,113840.0,0.4834468]
[1759259642826,1.29250315,113850.0,113840.0,0.89716015]
[1759259643022,0.48806315,113850.0,113840.0,0.89716015]
[1759259643227,1.29234315,113850.0,113840.0,0.97575953]
[1759259643428,0.8786298,113850.0,113840.0,0.97575953]
[1759259643624,0.28197454,113860.0,113850.0,0.1237295]
[1759259643830,1.08625454,113860.0,113850.0,0.97684223]
[1759259644216,1.08665454,113860.0,113850.0,0.89824285]
[1759259645130,1.08661454,113860.0,113850.0,0.89824285]
[1759259645631,0.22271621,113880.0,113860.0,0.1237169]
[1759259645834,1.78304,113880.0,113870.0,0.97682283]
[1759259646018,1.78144,113880.0,113870.0,1.33762283]
[1759259646220,1.78184,113880.0,113870.0,1.33762283]
[1759259646420,0.0004,113880.0,113870.0,1.73762283]
[1759259646621,1.8691821,113900.0,113890.0,0.03591]
[1759259646817,0.0893741,113910.0,113900.0,0.03591]
[1759259647017,1.8691741,113910.0,113900.0,0.96089813]
[1759259647220,2.6733741,113910.0,113900.0,0.87312193]
[1759259647420,2.8737741,113910.0,113900.0,0.87312193]
[1759259647824,3.28748745,113910.0,113900.0,0.45940858]
[1759259648226,1.50608745,113910.0,113900.0,0.45940858]
[1759259649021,1.9198008,113910.0,113900.0,0.43635858]
[1759259649330,2.3198008,113910.0,113900.0,0.4205423]
[1759259650228,2.3198008,113910.0,113900.0,0.0597423]
[1759259651034,1.4923741,113910.0,113900.0,0.0597423]
[1759259651233,2.3198008,113910.0,113900.0,0.0597423]
[1759259653435,1.4923741,113910.0,113900.0,0.0597423]
[1759259653636,2.3198008,113910.0,113900.0,0.0597423]
[1759259655333,2.3198008,113910.0,113900.0,0.01286]
[1759259658237,2.3198008,113910.0,113900.0,0.03591]
[1759259658437,1.90608745,113910.0,113900.0,0.03591]
[1759259658635,1.10188745,113910.0,113900.0,0.03591]
[1759259658841,3.68660745,113910.0,113900.0,0.03591]
[1759259660433,3.68623889,113910.0,113900.0,0.03591]